bitfinex/quotes_ETHUSD_20250916
["timestamp","ask_amount","ask_price","bid_price","bid_amount"]
[1757980801461,1.47982591,4532.5,4532.4,0.001]
[1757980801646,1.47982591,4532.5,4532.4,0.7515]
[1757980801852,1.47982591,4532.5,4532.4,1.1865]
[1757980802233,1.47982591,4532.5,4532.4,0.7515]
[1757980803769,1.79362591,4532.5,4532.4,0.001]
[1757980804133,0.792,4532.4,4531.8,1e-08]
[1757980804338,1.58540544,4531.9,4531.8,1e-08]
[1757980804572,2.18475525,4531.9,4531.8,1e-08]
[1757980804779,1.84254981,4531.9,4531.8,0.73430001]
[1757980805061,1.84254981,4531.9,4531.8,1.18550001]
[1757980805442,5.51954981,4531.9,4531.8,1.18550001]
[1757980805647,5.72587303,4531.9,4531.8,1.18550001]
[1757980806369,5.72387303,4531.9,4531.8,1.18550001]
[1757980806581,7.93045305,4531.9,4531.8,1.18550001]
[1757980807761,4.25545305,4531.9,4531.8,1.18550001]
[1757980807962,7.93045305,4531.9,4531.8,1.18550001]
[1757980809152,7.47925305,4531.9,4531.8,1.18550001]
[1757980809366,7.68614894,4531.9,4531.8,1.18550001]
[1757980809566,8.47955438,4531.9,4531.8,1.18550001]
[1757980809979,7.68614894,4531.9,4531.8,1.18550001]
[1757980810279,8.47955438,4531.9,4531.8,1.18550001]
[1757980810450,7.68614894,4531.9,4531.8,1.18550001]
[1757980811271,8.47955438,4531.9,4531.8,1.18550001]
[1757980812284,8.47855438,4531.9,4531.8,1.18550001]
[1757980815719,8.47855438,4531.9,4531.8,0.75050001]
[1757980816020,8.70475438,4531.9,4531.8,1e-08]
[1757980816220,7.91134894,4531.9,4531.8,1e-08]
[1757980816384,8.83604894,4531.9,4531.8,1e-08]
[1757980816808,9.28724894,4531.9,4531.8,1e-08]
[1757980817731,8.85804894,4531.9,4531.8,1e-08]
[1757980818026,8.36254894,4531.9,4531.8,1e-08]
[1757980818234,4.46234894,4531.9,4531.8,0.45120001]
[1757980818530,8.13634894,4531.9,4531.8,1.18550001]
[1757980818701,10.4783571,4531.9,4531.8,1e-08]
[1757980819017,9.40362116,4531.9,4531.8,1e-08]
[1757980819217,2.99877479,4531.5,4531.4,0.001]
[1757980819412,7.48044782,4531.5,4531.4,0.001]
[1757980819615,8.00114371,4531.5,4531.4,0.001]
[1757980820412,8.08962725,4531.5,4531.4,0.001]
[1757980825659,8.57972725,4531.5,4531.4,0.001]
[1757980826165,8.08962725,4531.5,4531.4,0.001]
[1757980827347,8.92232725,4531.5,4531.4,0.001]
[1757980827945,10.11398297,4531.5,4531.4,0.001]
[1757980828114,8.92232725,4531.5,4531.4,0.001]
[1757980832319,8.08962725,4531.5,4531.4,0.001]
[1757980832544,8.08938021,4531.5,4531.4,0.001]
[1757980833474,2.9989209,4531.2,4531.1,1e-08]
[1757980833663,9.17559393,4531.2,4531.1,1e-08]
[1757980833867,9.67474278,4531.2,4531.1,1e-08]
[1757980834067,10.52854278,4531.2,4531.1,1e-08]
[1757980834264,10.52912319,4531.2,4531.1,1e-08]
[1757980834777,10.61762454,4531.2,4531.1,1e-08]
[1757980836784,10.25392454,4531.2,4531.1,1e-08]
[1757980837080,10.25382326,4531.2,4531.1,1e-08]
[1757980837850,10.10985101,4531.2,4531.1,1e-08]
[1757980839874,10.59995101,4531.2,4531.1,1e-08]
[1757980840249,10.10985101,4531.2,4531.1,1e-08]
[1757980840459,10.59995101,4531.2,4531.1,1e-08]
[1757980840859,10.96365101,4531.2,4531.1,1e-08]
[1757980841862,10.10985101,4531.2,4531.1,1e-08]
[1757980845280,2.99901831,4531.0,4530.9,0.4685]
[1757980845580,8.6676738,4531.0,4530.9,0.001]
[1757980845890,11.87432265,4531.0,4530.9,0.7671]
[1757980846091,12.42592265,4531.0,4530.9,0.7671]
[1757980846294,11.23541932,4531.0,4530.9,0.7671]
[1757980849472,11.35080963,4531.0,4530.9,0.7671]
[1757980849805,11.35090835,4531.0,4530.9,0.7671]
[1757980850306,11.35090835,4531.0,4530.9,0.4685]
[1757980852773,11.35090835,4531.0,4530.9,0.001]
[1757980853173,11.35090835,4531.0,4530.9,0.7729]
[1757980853604,11.35120489,4531.0,4530.9,0.7729]
[1757980853793,11.35120489,4531.0,4530.9,1.2383]
[1757980856508,11.35120489,4531.0,4530.9,0.7729]
[1757980856712,11.65150489,4531.0,4530.9,0.001]
[1757980860310,5.99906702,4530.9,4530.8,0.081]
[1757980860512,7.01226329,4530.9,4530.8,0.081]
[1757980860805,7.31256329,4530.9,4530.8,0.081]
[1757980861005,7.80036329,4530.9,4530.8,0.081]
[1757980861408,2.20716445,4530.7,4530.6,0.4878]
[1757980861611,10.47445817,4530.7,4530.6,0.001]
[1757980861772,10.98166072,4530.7,4530.6,0.001]
[1757980862188,11.07017049,4530.7,4530.6,0.001]
[1757980862374,5.99926189,4530.5,4530.4,0.001]
[1757980862583,10.68245816,4530.5,4530.4,0.001]
[1757980862922,10.98275816,4530.5,4530.4,0.001]
[1757980863229,11.46955816,4530.5,4530.4,0.001]
[1757980868302,10.99397131,4530.5,4530.4,0.001]
[1757980868502,10.69367131,4530.5,4530.4,0.001]
[1757980868804,10.69367131,4530.5,4530.4,1.2327]
[1757980869237,10.69367131,4530.5,4530.4,0.7941]
[1757980869839,11.03982647,4530.5,4530.4,0.7941]
[1757980871156,11.03982647,4530.5,4530.4,0.4878]
[1757980871726,11.03982647,4530.5,4530.4,1.2327]
[1757980872747,11.51671039,4530.5,4530.4,1.2327]
[1757980872949,11.16955523,4530.5,4530.4,1.2327]
[1757980874560,12.36156947,4530.5,4530.4,1.2327]
[1757980876274,11.16955523,4530.5,4530.4,1.2327]
[1757980879843,11.28495472,4530.5,4530.4,1.2327]
[1757980883081,12.47696896,4530.5,4530.4,0.7941]
[1757980883285,11.48355472,4530.5,4530.4,0.001]
[1757980883751,5.99931061,4530.4,4530.1,0.5039]
[1757980884095,7.01380395,4530.4,4530.1,0.5039]
[1757980884450,7.51770395,4530.4,4530.1,0.5039]
[1757980885082,7.71890395,4530.4,4530.1,0.021]
[1757980885782,9.41690395,4530.4,4530.1,0.021]
[1757980887070,9.41736295,4530.4,4530.1,0.021]
[1757980887925,3.792,4530.0,4529.9,0.001]
[1757980888067,10.68345785,4530.0,4529.9,0.001]
[1757980888263,10.88715785,4530.0,4529.9,0.001]
[1757980888563,10.88715785,4530.0,4529.3,0.001]
[1757980888564,2.99974919,4529.5,4529.3,0.001]
[1757980888913,12.38270153,4529.5,4529.3,0.001]
[1757980889071,12.67290153,4529.5,4529.3,0.001]
[1757980889401,13.17580153,4529.5,4529.3,0.001]
[1757980891192,12.88560153,4529.5,4529.4,0.7932]
[1757980891497,12.88560153,4529.5,4529.4,1.2231]
[1757980892384,14.07615081,4529.5,4529.4,1.2231]
[1757980894406,12.88560153,4529.5,4529.4,0.4839]
[1757980896504,13.17580153,4529.5,4529.4,0.001]
[1757980896684,14.36635081,4529.5,4529.4,0.001]
[1757980897000,14.71258686,4529.5,4529.4,0.001]
[1757980897572,13.52203758,4529.5,4529.4,0.001]
[1757980897988,13.23183758,4529.5,4529.4,0.001]
[1757980898185,13.23183758,4529.5,4529.4,1.2231]
[1757980900300,13.23183758,4529.5,4529.4,0.7932]
[1757980900612,13.23183758,4529.5,4529.4,1.2231]
[1757980900978,13.43043758,4529.5,4529.4,0.001]
[1757980901998,13.23183758,4529.5,4529.4,0.001]
[1757980902309,13.23183758,4529.5,4529.4,1.2231]
[1757980908324,5.21669898,4529.5,4529.4,1.2231]
[1757980908635,4.11359636,4529.5,4529.4,1.2231]
[1757980908932,10.50381506,4529.5,4529.4,1.2231]
[1757980909114,10.98069898,4529.5,4529.4,1.2231]
[1757980909321,6.51869898,4529.5,4529.4,1.2231]
[1757980909503,5.53891506,4529.5,4529.4,1.2231]
[1757980910606,6.80779898,4529.5,4529.4,1.2231]
[1757980910904,11.07469636,4529.5,4529.4,0.001]
[1757980911108,11.56024588,4529.5,4529.4,0.001]
[1757980912400,12.35333964,4529.5,4529.4,0.001]
[1757980913196,12.14343964,4529.5,4529.4,0.7476]
[1757980913402,12.14343964,4529.5,4529.4,1.1846]
[1757980913614,11.35034588,4529.5,4529.4,1.1846]
[1757980914924,11.35034588,4529.5,4529.4,0.001]
[1757980915107,12.35333964,4529.5,4529.4,0.001]
[1757980916020,12.35333964,4529.5,4529.4,1.1846]
[1757980916021,12.14343964,4529.5,4529.4,1.1846]
[1757980917045,8.47143964,4529.5,4529.4,1.1846]
[1757980917215,12.14343964,4529.5,4529.4,1.1846]
[1757980917420,11.35034588,4529.5,4529.4,1.1846]
[1757980917937,11.35067846,4529.5,4529.4,1.1846]
[1757980919004,12.14546349,4529.5,4529.4,1.1846]
[1757980919206,11.35067846,4529.5,4529.4,1.1846]
[1757980919638,12.14545652,4529.5,4529.4,1.1846]
[1757980920025,12.14545652,4529.5,4529.4,0.8128]
[1757980920232,11.35067846,4529.5,4529.4,0.8128]
[1757980921217,11.35067846,4529.5,4529.4,1.2456]
[1757980922616,11.35067846,4529.5,4529.4,0.8128]
[1757980923918,11.35067846,4529.5,4529.4,1.2456]
[1757980925615,11.35067846,4529.5,4529.4,0.8128]
[1757980926149,12.14550564,4529.5,4529.4,1.2456]
[1757980926408,11.14175902,4529.5,4529.4,1.2456]
[1757980927139,7.47175902,4529.5,4529.4,1.2456]
[1757980927531,7.67873406,4529.5,4529.4,1.2456]
[1757980929331,8.47351851,4529.5,4529.4,1.2456]
[1757980929634,7.8096012,4529.5,4529.4,1.2456]
[1757980929824,7.01481675,4529.5,4529.4,1.2456]
[1757980930023,6.80784171,4529.5,4529.4,1.2456]
[1757980930234,7.01483457,4529.5,4529.4,1.2456]
[1757980930434,6.80784171,4529.5,4529.4,1.2456]
[1757980932162,7.01485318,4529.5,4529.4,1.2456]
[1757980932461,6.80784171,4529.5,4529.4,1.2456]
[1757980933374,7.01485995,4529.5,4529.4,1.2456]
[1757980934634,7.8096444,4529.5,4529.4,1.2456]
[1757980935571,7.8096444,4529.5,4529.4,0.8128]
[1757980936074,7.80975034,4529.5,4529.4,0.8128]
[1757980936568,7.01496589,4529.5,4529.4,0.5002]
[1757980936863,7.23436589,4529.5,4529.4,0.001]
[1757980937272,8.15626589,4529.5,4529.4,0.001]
[1757980937841,9.34681517,4529.5,4529.4,0.001]
[1757980938163,8.15626589,4529.5,4529.4,0.001]
[1757980938349,8.36022353,4529.5,4529.4,0.001]
[1757980938737,7.92422353,4529.5,4529.4,0.001]
[1757980939871,8.36022353,4529.5,4529.4,0.001]
[1757980943390,7.92422353,4529.5,4529.4,0.001]
[1757980944245,7.43832353,4529.5,4529.4,0.001]
[1757980944577,8.41173102,4529.5,4529.4,0.4973]
[1757980944778,8.41173102,4529.5,4529.4,0.001]
[1757980945091,8.70143102,4529.5,4529.4,0.001]
[1757980945894,9.17323102,4529.5,4529.4,0.001]
[1757980946109,8.70143102,4529.5,4529.4,0.001]
[1757980946680,8.41173102,4529.5,4529.4,0.4973]
[1757980946886,8.41173102,4529.5,4529.4,0.7879]
[1757980947085,10.79939495,4529.5,4529.4,1.2304]
[1757980948735,11.01289495,4529.5,4529.4,0.001]
[1757980949033,13.11930244,4529.5,4529.4,0.001]
[1757980949930,12.20570244,4529.5,4529.4,0.001]
[1757980950234,12.08073043,4529.5,4529.4,0.001]
[1757980950381,8.41173043,4529.5,4529.4,0.7879]
[1757980950588,10.80039495,4529.5,4529.4,1.2304]
[1757980954402,7.13039495,4529.5,4529.4,1.2304]
[1757980954599,10.79939495,4529.5,4529.4,1.2304]
[1757980954836,7.13039495,4529.5,4529.4,1.2304]
[1757980955236,3.59206217,4529.5,4529.4,1.2304]
[1757980955419,3.92334028,4529.5,4529.4,1.2304]
[1757980956593,3.92334028,4529.5,4529.4,0.7879]
[1757980957508,4.13684028,4529.5,4529.4,0.001]
[1757980958200,4.13684028,4529.5,4529.4,1.2304]
[1757980958201,3.92334028,4529.5,4529.4,1.2304]
[1757980961923,4.51951089,4529.5,4529.4,1.2304]
[1757980963044,1.40433264,4529.5,4529.4,1.2304]
[1757980963245,0.71071321,4529.5,4529.4,1.2304]
[1757980965165,2.9184624,4529.5,4529.4,1.2304]
[1757980965335,3.12551122,4529.5,4529.4,1.2304]
[1757980966159,2.9184624,4529.5,4529.4,1.2304]
[1757980967464,0.71071321,4529.5,4529.4,1.2304]
[1757980967669,0.23382929,4529.5,4529.4,1.2304]
[1757980968172,0.1096,4529.5,4529.4,1.2304]
[1757980968360,0.1096,4529.5,4529.4,1.35774785]
[1757980968742,0.002,4529.6,4529.4,1.35774785]
[1757980969046,0.002,4529.6,4529.5,0.9388]
[1757980969462,0.002,4529.6,4529.5,1.2294]
[1757980970851,2.20970045,4529.6,4529.5,1.2294]
[1757980971178,2.20970045,4529.6,4529.5,0.7869]
[1757980971503,0.002,4529.6,4529.5,1.2529]
[1757980972976,2.53572974,4529.6,4529.5,0.4963]
[1757980973288,2.53572974,4529.6,4529.4,0.001]
[1757980973289,2.20774919,4529.5,4529.4,0.001]
[1757980973675,2.20774919,4529.5,4529.4,0.468]
[1757980975415,0.002,4529.6,4529.4,1.1832]
[1757980975612,0.002,4529.6,4529.5,0.9071]
[1757980976120,0.002,4529.6,4529.5,1.1947]
[1757980978004,2.20970045,4529.6,4529.5,1.1947]
[1757980978202,0.002,4529.6,4529.5,1.1947]
[1757980978913,0.002,4529.6,4529.5,0.7671]
[1757980979112,2.20970045,4529.6,4529.5,0.7671]
[1757980979312,0.002,4529.6,4529.5,0.7671]
[1757980980916,0.002,4529.6,4529.5,1.1947]
[1757980982617,2.20970045,4529.6,4529.5,1.1947]
[1757980982821,0.002,4529.6,4529.5,1.1947]
[1757980983315,0.12610632,4529.6,4529.5,1.1947]
[1757980984582,0.002,4529.6,4529.5,1.1947]
[1757980984828,0.12610632,4529.6,4529.5,1.1947]
[1757980985136,0.002,4529.6,4529.5,1.1947]
[1757980985515,0.12610632,4529.6,4529.5,1.1947]
[1757980986236,0.002,4529.6,4529.5,1.1947]
[1757980986442,0.12610632,4529.6,4529.5,1.1947]
[1757980986726,0.002,4529.6,4529.5,1.1947]
[1757980986886,0.12610632,4529.6,4529.5,1.1947]
[1757980988636,2.33380677,4529.6,4529.5,1.1947]
[1757980988925,0.12610632,4529.6,4529.5,1.1947]
[1757980989111,2.33380677,4529.6,4529.5,1.1947]
[1757980989517,2.81024696,4529.6,4529.5,1.1947]
[1757980989824,2.20774919,4529.5,4529.4,0.001]
[1757980990037,2.8082957,4529.5,4529.4,0.001]
[1757980990193,3.1248957,4529.5,4529.4,0.001]
[1757980991645,2.8082957,4529.5,4529.4,0.001]
[1757980991824,0.60054651,4529.5,4529.4,0.001]
[1757980992133,0.60054651,4529.5,4529.4,1.21777797]
[1757980992543,0.60054651,4529.5,4529.4,0.79017797]
[1757980992835,0.60054651,4529.5,4529.4,1.1957]
[1757981000222,0.12410632,4529.5,4529.4,1.57119597]
[1757981000729,0.60054651,4529.5,4529.4,1.549118]
[1757981001714,0.60054651,4529.5,4529.4,1.1957]
[1757981002348,0.60054651,4529.5,4529.4,0.4805]
[1757981002730,0.60054651,4529.5,4529.4,0.7746]
[1757981002932,0.60054651,4529.5,4529.4,1.2242]
[1757981007461,0.60054651,4529.5,4529.4,4.8912]
[1757981007860,0.60054651,4529.5,4529.4,5.61416519]
[1757981008160,0.002,4529.6,4529.5,2.20774919]
[1757981008347,0.002,4529.6,4529.5,3.10944919]
[1757981008552,0.002,4529.6,4529.5,4.4132]
[1757981008860,0.002,4529.6,4529.5,1.1958]
[1757981009028,0.002,4529.6,4529.5,4.8628]
[1757981009426,0.002,4529.6,4529.5,0.7462]
[1757981009657,0.002,4529.6,4529.5,4.4142]
[1757981010960,0.002,4529.6,4529.5,0.7462]
[1757981011161,0.002,4529.6,4529.5,5.23739621]
[1757981011366,0.002,4529.6,4529.5,5.21531872]
[1757981013543,0.002,4529.6,4529.5,4.76571872]
[1757981014150,0.002,4529.6,4529.5,1.09771872]
[1757981014360,0.002,4529.6,4529.5,4.76471872]
[1757981014854,0.002,4529.6,4529.5,4.47061872]
[1757981017667,0.002,4529.6,4529.5,0.80361872]
[1757981017867,0.002,4529.6,4529.5,4.1191]
[1757981018657,0.002,4529.6,4529.5,0.4521]
[1757981018841,0.7006,4529.6,4529.5,3.667]
[1757981019030,0.7006,4529.6,4529.4,0.001]
[1757981019236,2.67824919,4529.5,4529.4,3.668]
[1757981019459,3.33564919,4529.5,4529.4,3.668]
[1757981019656,3.45971477,4529.5,4529.4,3.668]
[1757981020366,3.45971477,4529.5,4529.4,0.001]
[1757981021102,1.25196558,4529.5,4529.4,0.001]
[1757981021393,0.82466558,4529.5,4529.4,0.001]
[1757981023161,0.35416558,4529.5,4529.4,0.001]
[1757981023486,0.2301,4529.5,4529.4,0.001]
[1757981023654,2.43784919,4529.5,4529.4,0.001]
[1757981023860,0.2301,4529.5,4529.4,0.001]
[1757981024553,2.43784919,4529.5,4529.4,0.001]
[1757981025393,0.2301,4529.5,4529.4,0.001]
[1757981025793,2.90834919,4529.5,4529.4,0.001]
[1757981026091,4.24981477,4529.5,4529.4,0.001]
[1757981028662,4.93302627,4529.5,4529.4,0.001]
[1757981029169,8.60002627,4529.5,4529.4,0.001]
[1757981030870,8.68854701,4529.5,4529.4,0.001]
[1757981033302,8.26314701,4529.5,4529.4,0.001]
[1757981033499,7.79264701,4529.5,4529.4,0.001]
[1757981035204,7.26725496,4529.5,4529.4,0.7906]
[1757981035421,3.60025496,4529.5,4529.4,0.4862]
[1757981035578,3.12381477,4529.5,4529.4,0.001]
[1757981036177,3.12381477,4529.5,4529.4,0.4862]
[1757981037190,3.35021477,4529.5,4529.4,0.001]
[1757981041615,3.35007645,4529.5,4529.4,0.001]
[1757981043200,4.46325239,4529.5,4529.4,0.001]
[1757981043491,4.93969258,4529.5,4529.4,0.001]
[1757981044404,8.17769258,4529.5,4529.4,0.001]
[1757981044715,8.60669258,4529.5,4529.4,0.001]
[1757981046350,9.20224281,4529.5,4529.4,0.001]
[1757981047405,8.29564281,4529.5,4529.4,0.001]
[1757981048433,8.06924281,4529.5,4529.4,0.001]
[1757981048645,8.29564281,4529.5,4529.4,0.001]
[1757981049036,4.40224281,4529.5,4529.4,0.7906]
[1757981049212,3.80669258,4529.5,4529.4,1.2499]
[1757981049419,3.80704239,4529.5,4529.4,1.2499]
[1757981049622,1.5992932,4529.5,4529.4,1.2499]
[1757981049949,3.60025926,4529.5,4529.4,1.2499]
[1757981050126,3.80704341,4529.5,4529.4,1.2499]
[1757981054197,3.80704341,4529.5,4529.4,0.7906]
[1757981056220,4.40259364,4529.5,4529.4,0.7906]
[1757981056450,3.80704341,4529.5,4529.4,0.001]
[1757981056620,4.03344341,4529.5,4529.4,0.001]
[1757981058221,4.24056418,4529.5,4529.4,0.001]
[1757981058723,7.90756418,4529.5,4529.4,0.001]
[1757981059230,7.68116418,4529.5,4529.4,0.4862]
[1757981059434,7.47404341,4529.5,4529.4,1.2499]
[1757981060221,7.4747608,4529.5,4529.4,1.2499]
[1757981060659,3.8077608,4529.5,4529.4,1.2499]
[1757981062976,3.80795477,4529.5,4529.4,1.2499]
[1757981063648,3.80795477,4529.5,4529.4,0.7637]
[1757981065282,4.01506383,4529.5,4529.4,0.7637]
[1757981065650,3.10939794,4529.4,4529.3,0.001]
[1757981065853,3.91760352,4529.4,4529.3,0.001]
[1757981066046,7.79370352,4529.4,4529.3,0.001]
[1757981066277,8.49003501,4529.4,4529.3,0.001]
[1757981066587,8.93623501,4529.4,4529.3,0.001]
[1757981068775,8.49003501,4529.4,4529.3,0.001]
[1757981069081,8.00083501,4529.4,4529.3,0.001]
[1757981069598,7.58460352,4529.4,4529.3,0.2879]
[1757981069772,8.1811742,4529.4,4529.3,1.2114]
[1757981072279,4.5141742,4529.4,4529.3,1.2114]
[1757981074402,4.51455504,4529.4,4529.3,1.2114]
[1757981076469,4.51455504,4529.4,4529.3,0.4859]
[1757981076826,4.72115504,4529.4,4529.3,0.001]
[1757981078027,7.79158436,4529.4,4529.3,0.001]
[1757981078416,8.28078436,4529.4,4529.3,0.001]
[1757981078624,7.79158436,4529.4,4529.3,0.001]
[1757981079517,7.58498436,4529.4,4529.3,1.2114]
[1757981079701,5.97384359,4529.4,4529.3,1.2114]
[1757981079900,2.30684359,4529.4,4529.3,1.2114]
[1757981080100,4.51464153,4529.4,4529.3,1.2114]
[1757981081634,3.91798436,4529.4,4529.3,1.2114]
[1757981082736,0.80858642,4529.4,4529.3,1.2114]
[1757981082939,0.60142143,4529.4,4529.3,1.33464]
[1757981083234,0.60142143,4529.4,4529.3,1.2114]
[1757981083532,0.80858642,4529.4,4529.3,1.2114]
[1757981083731,0.60142143,4529.4,4529.3,1.2114]
[1757981088344,0.12426385,4529.4,4529.3,1.2114]
[1757981088515,0.12426385,4529.4,4529.3,3.41924668]
[1757981088719,0.12426385,4529.4,4529.3,1.92453261]
[1757981088951,0.12426385,4529.5,4529.3,1.92453261]
[1757981089137,0.12426385,4529.5,4529.4,0.02207797]
[1757981089336,0.002,4529.6,4529.4,1.23247797]
[1757981089660,0.12626385,4529.6,4529.4,0.79387797]
[1757981089831,0.002,4529.6,4529.5,1.07430106]
[1757981090235,0.002,4529.6,4529.5,1.36040106]
[1757981091455,0.002,4529.6,4529.5,1.38247855]
[1757981091750,0.002,4529.6,4529.5,15.88247855]
[1757981091951,0.002,4529.6,4529.5,15.86040106]
[1757981094259,0.002,4529.6,4529.5,15.42180106]
[1757981094955,0.002,4529.6,4529.5,15.87380106]
[1757981101649,0.002,4529.6,4529.5,18.08155025]
[1757981102541,0.002,4529.6,4529.5,15.87380106]
[1757981103682,0.002,4529.6,4529.5,18.08155025]
[1757981104178,0.002,4529.6,4529.5,15.87380106]
[1757981104385,0.002,4529.6,4529.5,18.08155025]
[1757981105175,0.002,4529.6,4529.5,15.87380106]
[1757981105376,0.002,4529.6,4529.5,15.13570106]
[1757981105546,0.002,4529.6,4529.5,15.88400106]
[1757981105741,0.002,4529.6,4529.5,18.09175025]
[1757981106889,0.002,4529.6,4529.5,3.13975025]
[1757981107089,0.002,4529.6,4529.5,3.61382774]
[1757981107291,0.002,4529.6,4529.5,1.40607855]
[1757981107496,0.002,4529.6,4529.5,1.38400106]
[1757981108197,0.002,4529.6,4529.5,3.59175025]
[1757981108363,0.002,4529.6,4529.5,1.38400106]
[1757981108565,0.002,4529.6,4529.5,3.59175025]
[1757981109266,0.002,4529.6,4529.5,3.61382774]
[1757981110377,0.002,4529.6,4529.5,1.40607855]
[1757981110767,0.002,4529.6,4529.5,0.95407855]
[1757981111276,0.002,4529.6,4529.5,1.40607855]
[1757981111478,0.002,4529.6,4529.5,3.61382774]
[1757981112497,0.002,4529.6,4529.5,18.11382774]
[1757981112702,0.002,4529.6,4529.5,18.09175025]
[1757981113797,0.002,4529.6,4529.5,21.75775025]
[1757981118535,0.308,4529.6,4529.5,18.31680106]
[1757981119635,0.002,4529.6,4529.5,20.52455025]
[1757981119837,0.002,4529.6,4529.5,20.98215025]
[1757981121143,0.002,4529.6,4529.5,18.77440106]
[1757981121305,0.002,4529.6,4529.5,20.98215025]
[1757981121721,0.3085,4529.6,4529.5,18.31680106]
[1757981121961,0.3085,4529.6,4529.5,18.166]
[1757981122846,0.3085,4529.6,4529.4,0.1096]
[1757981122987,0.12426385,4529.5,4529.3,0.001]
[1757981123191,1.32118205,4529.5,4529.4,3.666]
[1757981123439,1.27546865,4529.5,4529.4,3.666]
[1757981123613,3.48321784,4529.5,4529.4,3.666]
[1757981124239,3.48321784,4529.5,4529.3,0.001]
[1757981124447,3.35894919,4529.5,4529.4,3.666]
[1757981124588,3.35894919,4529.5,4529.3,0.001]
[1757981124589,2.20779794,4529.4,4529.3,0.001]
[1757981124927,2.79102416,4529.4,4529.3,0.001]
[1757981125127,3.59282416,4529.4,4529.3,0.001]
[1757981126723,4.38482416,4529.4,4529.3,0.001]
[1757981128530,5.06852435,4529.4,4529.3,0.001]
[1757981128732,4.5916423,4529.4,4529.3,0.001]
[1757981128935,5.73239171,4529.4,4529.3,0.001]
[1757981129229,5.25550966,4529.4,4529.3,0.001]
[1757981129737,6.32849428,4529.4,4529.3,0.001]
[1757981130308,5.73239171,4529.4,4529.3,0.001]
[1757981131111,6.32849428,4529.4,4529.3,0.001]
[1757981131313,5.8513231,4529.4,4529.3,0.001]
[1757981131514,6.32820515,4529.4,4529.3,0.001]
[1757981131715,5.8513231,4529.4,4529.3,0.001]
[1757981131910,6.32820515,4529.4,4529.3,0.001]
[1757981132151,5.8513231,4529.4,4529.3,0.001]
[1757981132357,5.73210258,4529.4,4529.3,0.001]
[1757981132848,5.52557357,4529.4,4529.3,0.001]
[1757981133024,5.73204508,4529.4,4529.3,0.001]
[1757981133543,5.25516303,4529.4,4529.3,0.001]
[1757981134616,8.92216303,4529.4,4529.3,0.001]
[1757981134816,9.39904508,4529.4,4529.3,0.001]
[1757981135322,9.04964508,4529.4,4529.3,0.001]
[1757981136426,12.28878451,4529.4,4529.3,0.001]
[1757981136744,12.49463113,4529.4,4529.3,0.001]
[1757981138034,12.49452744,4529.4,4529.3,0.001]
[1757981138420,12.60996535,4529.4,4529.3,0.001]
[1757981139657,12.60996535,4529.4,4529.0,0.001]
[1757981139658,5.99994418,4529.1,4529.0,0.001]
[1757981139958,10.68010632,4529.1,4529.0,0.001]
[1757981140269,11.83080632,4529.1,4529.0,0.001]
[1757981140437,11.91934489,4529.1,4529.0,0.001]
[1757981141352,11.71304514,4529.1,4529.0,0.001]
[1757981141664,7.79608825,4529.1,4529.0,0.001]
[1757981141829,11.46308825,4529.1,4529.0,0.001]
[1757981143448,7.48858825,4529.1,4529.0,0.001]
[1757981143641,10.56234514,4529.1,4529.0,1.202]
[1757981144254,10.56234514,4529.1,4529.0,0.759]
[1757981145384,6.89534514,4529.1,4529.0,0.759]
[1757981145586,10.39296309,4529.1,4529.0,0.001]
[1757981145751,10.86984514,4529.1,4529.0,0.001]
[1757981148386,11.46308825,4529.1,4529.0,0.001]
[1757981149489,11.66920609,4529.1,4529.0,0.001]
[1757981151289,11.07596298,4529.1,4529.0,0.001]
[1757981153506,10.76846298,4529.1,4529.0,0.7955]
[1757981153676,10.76846298,4529.1,4529.0,1.2342]
[1757981154384,10.76846298,4529.1,4529.0,0.001]
[1757981154707,10.98476298,4529.1,4529.0,0.001]
[1757981155302,11.77611652,4529.1,4529.0,0.001]
[1757981156378,11.55981652,4529.1,4529.0,0.4567]
[1757981156574,11.77831652,4529.1,4529.0,0.001]
[1757981156807,10.98696298,4529.1,4529.0,0.001]
[1757981157098,11.89366298,4529.1,4529.0,0.001]
[1757981157901,11.45676298,4529.1,4529.0,0.001]
[1757981158090,11.89366298,4529.1,4529.0,0.001]
[1757981158400,11.45676298,4529.1,4529.0,0.001]
[1757981158711,13.08647047,4529.1,4529.0,0.001]
[1757981159890,13.08794584,4529.1,4529.0,0.001]
[1757981160314,11.89513835,4529.1,4529.0,0.001]
[1757981164940,11.45823835,4529.1,4529.0,0.001]
[1757981165141,11.89513835,4529.1,4529.0,0.001]
[1757981165619,11.45838344,4529.1,4529.0,0.001]
[1757981166330,5.99999293,4529.0,4528.9,0.001]
[1757981166639,7.59399362,4529.0,4528.9,0.001]
[1757981166843,8.25159362,4529.0,4528.9,0.001]
[1757981167006,8.34013297,4529.0,4528.9,0.001]
[1757981168251,8.44992278,4529.0,4528.9,0.001]
[1757981168457,8.44772278,4529.0,4528.9,0.001]
[1757981170035,6.00004168,4528.9,4528.8,1e-08]
[1757981170237,12.85090116,4528.9,4528.8,1e-08]
[1757981170437,3.00018796,4528.6,4528.5,0.001]
[1757981170672,10.68224744,4528.6,4528.5,0.001]
[1757981171025,10.68224744,4528.6,4528.5,0.4567]
[1757981171268,11.13894744,4528.6,4528.5,0.4567]
[1757981171837,11.13894744,4528.6,4528.5,0.7665]
[1757981172569,11.13894744,4528.6,4528.5,0.4567]
[1757981173067,11.36384744,4528.6,4528.5,0.001]
[1757981174441,11.13894744,4528.6,4528.5,0.001]
[1757981174993,11.13894744,4528.6,4528.5,0.4567]
[1757981175759,6.67994744,4528.6,4528.5,0.7665]
[1757981175996,10.34794744,4528.6,4528.5,0.7665]
[1757981176145,11.34934744,4528.6,4528.5,0.001]